bitfinex/quotes_SOLUSD_20250705
["timestamp","ask_amount","ask_price","bid_price","bid_amount"]
[1751735846556,5.05235933,146.97,146.95,26.0]
[1751735846775,5.05235933,146.96,146.95,26.0]
[1751735846946,5.05235933,146.96,146.92,43.2256682]
[1751735847141,6.80416692,146.97,146.93,0.14216157]
[1751735847348,5.05689634,146.96,146.93,0.14216157]
[1751735847578,6.80416692,146.97,146.92,69.2256682]
[1751735847871,5.05689827,146.96,146.92,69.2256682]
[1751735848043,6.80416692,146.97,146.92,69.2256682]
[1751735848247,5.05689793,146.96,146.93,0.14216157]
[1751735848445,6.80416692,146.97,146.93,0.14216157]
[1751735848645,6.30233522,146.99,146.93,0.14216157]
[1751735848646,5.05724248,146.96,146.93,0.14216157]
[1751735848842,25.3740685,147.01,146.96,26.0]
[1751735848843,6.30233522,147.01,146.96,26.0]
[1751735849161,5.05653981,147.0,146.97,7.0820682]
[1751735849486,5.05653981,146.99,146.97,7.0820682]
[1751735849669,6.80179567,147.02,146.97,7.0820682]
[1751735849969,5.05736469,147.01,146.97,7.0820682]
[1751735850149,5.05736469,147.0,146.97,7.0820682]
[1751735850346,5.05736469,146.99,146.97,7.0820682]
[1751735850668,6.80179567,147.02,146.97,7.0820682]
[1751735850868,5.0578278,147.01,146.97,7.0820682]
[1751735851067,5.0578278,147.0,146.97,7.0820682]
[1751735851378,6.80179567,147.02,146.97,7.0820682]
[1751735851550,5.05861978,147.01,146.97,7.0820682]
[1751735851744,5.05861978,147.0,146.97,7.0820682]
[1751735851946,6.80179567,147.02,146.97,7.0820682]
[1751735852162,5.05862054,147.01,146.98,7.22422977]
[1751735852464,5.05862054,147.0,146.98,7.22422977]
[1751735852654,6.80179567,147.02,146.98,7.22422977]
[1751735852859,5.05905002,147.01,146.98,7.22422977]
[1751735853060,5.05905002,147.0,146.98,7.22422977]
[1751735853264,6.80133306,147.03,146.99,7.0820682]
[1751735853441,5.05955848,147.02,147.0,7.0820682]
[1751735853647,6.80097834,147.04,147.0,7.0820682]
[1751735853863,5.05941335,147.03,147.0,7.0820682]
[1751735854076,6.80097834,147.04,147.0,7.0820682]
[1751735854379,5.05921679,147.03,146.99,7.0820682]
[1751735854549,5.06015696,147.02,146.98,15.88922977]
[1751735854748,6.80097834,147.04,146.98,15.88922977]
[1751735854965,5.06036077,147.03,146.98,15.88922977]
[1751735855241,5.06036077,147.02,146.98,15.88922977]
[1751735856282,6.8015457,147.03,146.98,15.88922977]
[1751735856843,5.06201113,147.02,146.98,8.80716157]
[1751735857250,5.0633118,147.02,146.98,8.80716157]
[1751735857571,5.0633118,147.04,146.98,8.80716157]
[1751735857774,5.0633118,147.03,146.98,8.80716157]
[1751735857955,5.0633118,147.02,146.98,8.80716157]
[1751735858275,5.0633118,147.04,146.98,8.80716157]
[1751735858455,5.0633118,147.03,146.98,8.80716157]
[1751735858656,5.0633118,147.04,146.98,8.80716157]
[1751735858866,5.0633118,147.03,146.98,8.80716157]
[1751735859051,5.0633118,147.04,146.98,8.80716157]
[1751735859381,6.80179567,147.02,146.98,8.80716157]
[1751735859560,11.86510747,147.02,146.98,15.88922977]
[1751735859764,6.80179567,147.02,146.98,15.88922977]
[1751735860370,11.86736725,147.02,146.98,15.88922977]
[1751735860583,6.80179567,147.02,146.98,15.88922977]
[1751735860882,6.80133306,147.03,146.98,15.88922977]
[1751735861186,11.86806,147.03,146.98,15.88922977]
[1751735861483,5.06672694,147.02,146.98,15.88922977]
[1751735861881,6.80133306,147.03,146.98,15.88922977]
[1751735862070,11.86806,147.03,146.98,22.69275421]
[1751735862263,5.06672694,147.02,146.98,22.69275421]
[1751735866163,11.86858912,147.02,146.98,15.88922977]
[1751735866368,6.80186218,147.02,146.98,15.88922977]
[1751735866763,11.87395859,147.03,146.98,22.69285371]
[1751735866962,5.07243627,147.02,146.98,22.69285371]
[1751735867989,5.07243627,147.02,146.98,15.88922977]
[1751735869188,23.80142808,147.05,146.98,15.88922977]
[1751735869482,5.07470859,147.04,146.98,15.88922977]
[1751735869655,5.07470859,147.03,146.98,15.88922977]
[1751735869853,5.07470859,147.02,146.98,15.88922977]
[1751735870057,23.80142808,147.05,146.98,15.88922977]
[1751735870266,5.07470859,147.04,146.98,15.88922977]
[1751735870482,5.07470859,147.03,146.98,15.88922977]
[1751735870667,5.07470859,147.02,146.98,15.88922977]
[1751735870871,23.80142808,147.05,146.98,15.88922977]
[1751735871062,5.07542199,147.04,146.98,15.88922977]
[1751735871262,5.07542199,147.03,146.98,15.88922977]
[1751735871485,11.87725802,147.02,146.98,15.88922977]
[1751735871686,6.80183603,147.02,146.98,8.80716157]
[1751735872583,6.80183603,147.02,146.98,8.665]
[1751735872759,5.07662884,147.01,146.98,7.12]
[1751735873170,6.80183603,147.02,146.98,7.12]
[1751735873385,5.07725177,147.01,146.98,7.12]
[1751735873585,17.00333734,147.03,146.98,7.12]
[1751735873790,5.07725059,147.02,146.98,7.12]
[1751735874090,5.07725059,147.01,146.98,7.12]
[1751735874266,17.00333734,147.03,146.98,7.12]
[1751735874462,5.07765928,147.02,146.98,7.12]
[1751735874670,11.88024935,147.01,146.98,7.12]
[1751735874878,6.80259007,147.01,146.98,7.12]
[1751735875898,17.00333734,147.03,146.98,7.12]
[1751735876069,5.07808435,147.02,146.98,7.12]
[1751735876371,5.07808435,147.01,146.98,7.12]
[1751735876572,17.00333734,147.03,146.98,7.12]
[1751735876882,11.41157216,147.02,146.98,7.12]
[1751735877086,5.07816349,147.01,146.98,7.12]
[1751735877276,5.07816349,147.0,146.97,0.06]
[1751735877478,5.07816349,146.99,146.97,0.06]
[1751735877677,5.07816349,146.98,146.97,0.06]
[1751735878271,11.88181024,146.98,146.97,0.06]
[1751735878675,5.07816349,146.98,146.97,0.06]
[1751735879073,11.88181024,146.98,146.97,0.06]
[1751735883299,18.21521891,146.98,146.97,0.06]
[1751735885105,11.88181024,146.98,146.97,0.06]
[1751735888280,5.07816349,146.98,146.97,0.06]
[1751735889709,11.88181024,146.98,146.97,0.06]
[1751735890007,5.07816349,146.98,146.97,0.06]
[1751735890212,5.07816349,146.98,146.97,7.28422977]
[1751735890396,11.88737529,147.01,146.97,7.28422977]
[1751735890592,5.08506269,147.0,146.99,7.0820682]
[1751735890907,5.08506269,147.0,146.97,0.20216157]
[1751735891083,6.8023126,147.01,146.98,7.0820682]
[1751735891283,5.08461244,147.0,146.98,7.0820682]
[1751735891515,6.8023126,147.01,146.98,7.0820682]
[1751735891687,5.08481006,147.0,146.98,7.0820682]
[1751735891888,6.8023126,147.01,146.98,7.0820682]
[1751735892098,5.08471125,147.0,146.98,7.0820682]
[1751735892282,6.8023126,147.01,146.98,7.0820682]
[1751735892478,5.08515616,147.0,146.98,7.0820682]
[1751735892680,6.80133306,147.03,146.98,7.0820682]
[1751735893028,6.80133306,147.03,146.99,7.0820682]
[1751735893029,5.08505422,147.02,146.99,7.0820682]
[1751735893201,5.08505422,147.01,146.99,7.0820682]
[1751735893391,6.80133306,147.03,146.98,7.0820682]
[1751735893582,5.08510487,147.02,146.98,7.0820682]
[1751735893794,5.08510487,147.01,146.98,7.0820682]
[1751735893996,6.80133306,147.03,146.98,7.0820682]
[1751735894203,11.88752642,147.02,146.98,7.0820682]
[1751735894411,5.08533984,147.01,146.98,7.0820682]
[1751735894711,6.80218658,147.02,146.98,7.0820682]
[1751735895014,5.085102,147.01,146.98,7.0820682]
[1751735895195,23.80667576,147.02,146.97,0.06]
[1751735895396,11.41851948,147.01,146.97,0.06]
[1751735895602,5.08511081,147.0,146.97,0.06]
[1751735895901,5.08511081,146.99,146.97,0.06]
[1751735896096,23.80667576,147.02,146.97,0.06]
[1751735896097,5.08511081,146.98,146.97,0.06]
[1751735896905,6.80270172,147.01,146.97,7.1420682]
[1751735897111,32.80270172,147.01,146.97,7.1420682]
[1751735897314,5.08590645,147.0,146.97,0.06]
[1751735897514,5.08590645,146.99,146.97,0.06]
[1751735897819,6.8019802,147.02,146.98,7.0820682]
[1751735897997,5.08554574,147.01,146.98,7.0820682]
[1751735898195,5.08554574,147.0,146.98,7.0820682]
[1751735898495,5.08554574,146.99,146.98,7.0820682]
[1751735900510,5.08554574,146.99,146.97,7.28422977]
[1751735900711,6.80226821,147.01,146.97,7.28422977]
[1751735900911,5.08598819,147.0,146.97,7.28422977]
[1751735901097,5.08598819,146.99,146.97,7.28422977]
[1751735901299,6.80197779,147.02,146.97,7.28422977]
[1751735901611,5.08608544,147.01,146.98,7.0820682]
[1751735901914,6.80148518,147.03,146.99,7.22422977]
[1751735902206,5.08567861,147.02,146.99,7.22422977]
[1751735902407,5.08567861,147.01,146.98,7.0820682]
[1751735902591,5.08567861,147.0,146.98,7.0820682]
[1751735902792,6.80182558,147.02,146.98,7.0820682]
[1751735902997,5.08562131,147.01,146.98,7.0820682]
[1751735903184,5.08562131,147.0,146.98,7.0820682]
[1751735903390,6.80133306,147.03,146.98,7.0820682]
[1751735903596,5.08564452,147.02,146.98,7.0820682]
[1751735903813,5.08564452,147.01,146.98,7.0820682]
[1751735904001,5.08564452,147.0,146.98,7.0820682]
[1751735904297,6.80133306,147.03,146.98,7.0820682]
[1751735904490,11.8876852,147.02,146.98,7.0820682]
[1751735904690,5.0856752,147.01,146.98,7.0820682]
[1751735904901,5.0856752,147.0,146.98,7.0820682]
[1751735905092,6.80201,147.02,146.98,7.0820682]
[1751735905306,5.08570542,147.01,146.98,7.0820682]
[1751735905514,5.08570542,147.0,146.98,7.0820682]
[1751735905693,13.1583597,147.03,146.98,7.0820682]
[1751735906012,5.08580307,147.02,146.98,7.0820682]
[1751735906210,5.08580307,147.01,146.98,7.0820682]
[1751735906417,5.08580307,147.0,146.98,7.0820682]
[1751735906594,6.80133306,147.03,146.98,7.0820682]
[1751735906911,11.88796467,147.02,146.98,7.0820682]
[1751735907094,5.08596351,147.01,146.98,7.0820682]
[1751735907285,5.08596351,147.0,146.98,7.0820682]
[1751735907499,6.80200116,147.02,146.98,7.0820682]
[1751735907792,5.08606483,147.01,146.98,7.0820682]
[1751735907991,5.08606483,147.0,146.98,7.0820682]
[1751735908201,6.80133306,147.03,146.98,7.0820682]
[1751735908400,5.08616452,147.02,146.98,7.0820682]
[1751735908602,6.80133306,147.03,146.98,7.0820682]
[1751735908603,5.08616452,147.01,146.98,7.0820682]
[1751735908805,5.08616452,147.0,146.98,7.0820682]
[1751735909008,6.80133306,147.03,146.98,7.0820682]
[1751735909206,11.8883713,147.02,146.98,7.0820682]
[1751735909412,5.08636765,147.01,146.98,7.0820682]
[1751735909620,5.08636765,147.0,146.98,7.0820682]
[1751735909916,6.80200365,147.02,146.98,7.0820682]
[1751735910220,5.08627072,147.01,146.98,7.0820682]
[1751735910390,11.8890063,147.0,146.97,0.20216157]
[1751735910595,5.08627072,146.99,146.97,0.20216157]
[1751735910806,6.80273558,147.0,146.97,0.06]
[1751735911014,5.08648369,146.99,146.97,0.06]
[1751735911214,6.80273558,147.0,146.97,0.06]
[1751735911397,5.0867326,146.99,146.97,0.06]
[1751735911726,6.80273558,147.0,146.97,0.06]
[1751735911926,5.0867326,146.99,146.97,0.06]
[1751735912102,6.80273558,147.0,146.97,0.06]
[1751735912297,5.08699323,146.99,146.97,7.1420682]
[1751735912499,6.80197264,147.02,146.97,7.1420682]
[1751735912707,5.08689148,147.01,147.0,0.14216157]
[1751735912905,6.35702664,147.04,147.0,7.0820682]
[1751735912906,6.80090563,147.04,147.0,7.0820682]
[1751735913101,5.08628302,147.03,146.99,7.22422977]
[1751735913312,5.08628302,147.02,146.99,7.22422977]
[1751735913510,5.08628302,147.01,146.99,7.22422977]
[1751735913840,5.08628302,147.0,146.99,7.22422977]
[1751735914615,6.80153848,147.03,146.99,7.22422977]
[1751735914822,5.08645459,147.02,146.99,7.22422977]
[1751735915032,5.08645459,147.01,146.99,7.22422977]
[1751735915225,6.80153848,147.03,146.99,7.22422977]
[1751735915424,5.08661781,147.02,146.99,0.14216157]
[1751735915623,5.08661781,147.01,146.99,0.14216157]
[1751735915825,6.80153848,147.03,146.99,0.14216157]
[1751735916032,5.08662017,147.02,146.99,0.14216157]
[1751735916326,5.08662017,147.01,146.99,0.14216157]
[1751735916624,6.80153848,147.03,146.99,0.14216157]
[1751735916798,5.0864862,147.02,146.99,0.14216157]
[1751735917001,5.0864862,147.01,146.99,0.14216157]
[1751735917225,6.80094947,147.04,146.99,14.02728233]
[1751735917422,5.08648064,147.03,147.0,7.0820682]
[1751735917606,5.08648064,147.02,147.0,7.0820682]
[1751735917801,6.80094947,147.04,147.0,7.0820682]
[1751735918002,5.08623939,147.03,147.0,7.0820682]
[1751735918202,5.08623939,147.02,146.99,7.22422977]
[1751735918497,6.80141963,147.03,146.99,7.22422977]
[1751735918697,5.08589412,147.02,146.99,7.22422977]
[1751735918904,5.08589412,147.01,146.99,7.22422977]
[1751735919127,6.80141963,147.03,146.99,7.22422977]
[1751735919326,5.08579325,147.02,146.99,7.22422977]
[1751735919630,5.08579325,147.01,146.99,7.22422977]
[1751735919826,6.80087051,147.04,146.99,7.22422977]
[1751735920128,5.08579207,147.03,146.97,0.06]
[1751735920335,5.08579207,147.02,146.97,7.28422977]
[1751735920531,5.08579207,147.01,146.97,7.1420682]
[1751735920709,5.08579207,147.0,146.97,7.1420682]
[1751735920907,13.1586727,147.04,146.97,7.1420682]
[1751735921115,5.08598694,147.03,146.97,7.1420682]
[1751735921312,5.08598694,147.02,146.97,7.1420682]
[1751735921515,5.08598694,147.01,146.97,7.1420682]
[1751735921716,6.80318389,146.99,146.97,0.06]
[1751735924133,23.80642812,147.02,146.97,0.06]
[1751735924433,5.08700883,147.01,146.97,0.06]
[1751735924734,5.08700883,147.0,146.97,0.06]
[1751735924934,5.08700883,146.99,146.97,0.06]
[1751735925116,5.08700883,146.98,146.97,0.06]
[1751735926043,11.89065558,146.98,146.97,0.06]
[1751735932533,18.24845777,146.98,146.97,0.06]
[1751735938456,36.89810663,146.98,146.97,0.06]
[1751735938751,47.54942132,146.98,146.92,8.7147]
[1751735938948,11.4424827,146.97,146.92,8.7147]
[1751735939140,5.08700883,146.96,146.92,8.7147]
[1751735939454,5.08700883,146.95,146.92,8.7147]
[1751735939652,6.80596202,146.93,146.92,8.7147]
[1751735939856,11.89297085,146.93,146.92,8.7147]
[1751735940240,11.89297085,146.93,146.92,7.1]
[1751735940241,6.80596202,146.93,146.92,7.1]
[1751735940952,11.89297085,146.93,146.92,7.1]
[1751735941143,11.89297085,146.93,146.91,0.06]
[1751735941346,5.08127569,146.92,146.91,0.06]
[1751735941552,11.88770095,146.92,146.91,0.06]
[1751735942146,6.80642526,146.92,146.91,0.06]
[1751735942349,11.88770095,146.92,146.91,0.06]
[1751735942750,6.80642526,146.92,146.91,0.06]
[1751735943059,11.88770095,146.92,146.91,0.06]
[1751735943266,56.53734981,146.92,146.91,1e-08]
[1751735943444,62.89282368,146.92,146.91,1e-08]
[1751735944152,56.53734981,146.92,146.91,1e-08]
[1751735949940,44.64964886,146.91,146.9,1e-08]
[1751735950163,49.73092455,146.91,146.9,1e-08]
[1751735952259,37.88816426,146.91,146.9,1e-08]
[1751735952458,13.91629919,146.96,146.9,1e-08]
[1751735952763,13.91629919,146.96,146.9,7.08206821]
[1751735952764,17.01258931,146.95,146.9,7.08206821]
[1751735952947,43.01258931,146.95,146.9,7.08206821]
[1751735953263,43.01258931,146.95,146.9,1e-08]
[1751735954663,32.80503572,146.95,146.91,8.6026682]
[1751735956458,6.80503572,146.95,146.92,7.0820682]
[1751735957059,32.80468317,146.96,146.92,7.0820682]
[1751735957259,6.80468317,146.96,146.92,7.0820682]
[1751735959469,6.80468317,146.96,146.91,8.6026682]
[1751735963777,6.83468317,146.96,146.91,8.6026682]
[1751735966256,11.88894457,146.96,146.91,8.6026682]
[1751735966460,0.03,146.96,146.91,8.6026682]
[1751735966659,5.09819824,146.96,146.91,8.6026682]
[1751735968151,5.09819824,146.96,146.91,1.5206]
[1751735968781,11.903049,146.96,146.91,8.6026682]
[1751735968958,5.06819824,146.95,146.91,8.6026682]
[1751735969600,5.06819824,146.95,146.92,7.0820682]
[1751735969787,0.03,146.96,146.93,7.0820682]
[1751735969963,5.10334442,146.96,146.93,7.0820682]
[1751735970166,0.03,146.96,146.93,7.0820682]
[1751735971070,0.03,146.96,146.94,7.0820682]
[1751735972382,5.10461888,146.96,146.92,6.6438]
[1751735972582,0.03,146.96,146.92,6.6438]
[1751735972789,6.83457267,146.96,146.92,13.7258682]
[1751735974585,11.90975346,146.96,146.92,13.7258682]
[1751735974894,0.03,146.96,146.92,13.7258682]
[1751735975596,5.10565048,146.96,146.92,13.7258682]
[1751735975768,0.03,146.96,146.92,13.7258682]
[1751735975970,6.83457267,146.96,146.92,13.7258682]
[1751735976196,11.91022315,146.96,146.92,13.7258682]
[1751735976395,6.83457267,146.96,146.92,13.7258682]
[1751735976994,11.91081493,146.96,146.92,13.7258682]
[1751735977186,6.83457267,146.96,146.92,13.7258682]
[1751735977787,11.91108228,146.96,146.92,13.7258682]
[1751735978099,0.03,146.96,146.92,13.7258682]
[1751735978283,5.10644577,146.96,146.92,13.7258682]
[1751735979266,5.10644577,146.96,146.92,6.6438]
[1751735979472,5.07644577,146.95,146.91,1.5206]
[1751735980181,6.80549884,146.94,146.91,1.5206]
[1751735985401,6.80549884,146.94,146.9,1e-08]
[1751735985577,5.07644577,146.93,146.9,1e-08]
[1751735987907,6.80642526,146.92,146.9,1e-08]
[1751735988100,11.88287103,146.92,146.9,1e-08]
[1751735988299,6.80642526,146.92,146.9,1e-08]
[1751735988696,11.8850089,146.92,146.9,1e-08]
[1751735988898,6.80642526,146.92,146.9,1e-08]
[1751735989289,11.8850089,146.92,146.9,1e-08]
[1751735989589,6.80642526,146.92,146.9,1e-08]
[1751735990105,11.88595924,146.92,146.9,1e-08]
[1751735990295,6.80642526,146.92,146.9,1e-08]
[1751735990686,11.88696541,146.92,146.9,1e-08]
[1751735990887,6.80642526,146.92,146.9,1e-08]
[1751735992135,11.88824703,146.92,146.9,1e-08]
[1751735992309,17.0137471,146.94,146.9,1e-08]
[1751735992488,5.08343724,146.93,146.9,1e-08]
[1751735992695,5.08343724,146.92,146.9,1e-08]
[1751735992894,43.0137471,146.94,146.9,1e-08]
[1751735993094,5.08343488,146.93,146.9,1e-08]
[1751735993411,11.88986014,146.92,146.9,1e-08]
[1751735993591,6.80642526,146.92,146.9,1e-08]
[1751735994297,5.08714646,146.91,146.9,1e-08]
[1751736000318,11.89403503,146.91,146.9,1e-08]
[1751736007596,11.92403503,146.91,146.9,1e-08]
[1751736009498,62.9169575,146.91,146.9,1e-08]
[1751736009700,56.57368389,146.91,146.89,0.2]
[1751736009902,11.45334931,146.9,146.89,0.2]
[1751736011223,18.26070125,146.9,146.89,0.2]
[1751736012206,11.8944984,146.9,146.89,0.2]
[1751736019233,11.8944984,146.9,146.89,1e-08]
[1751736022106,11.8944984,146.9,146.87,0.1]
[1751736022107,44.64964886,146.89,146.87,1e-08]
[1751736022321,11.4410104,146.88,146.87,1e-08]
[1751736022500,16.86699259,146.88,146.87,1e-08]
[1751736022705,35.51664145,146.88,146.86,1e-08]
[1751736022918,11.4410104,146.87,146.86,1e-08]
[1751736023527,18.24975282,146.87,146.86,1e-08]
[1751736024928,18.64964886,146.86,146.85,1e-08]
[1751736025114,44.64964886,146.84,146.82,1e-08]
[1751736025317,30.08703295,146.83,146.82,1e-08]
[1751736025631,36.89763023,146.83,146.82,1e-08]
[1751736026214,30.5473926,146.83,146.82,1e-08]
[1751736026418,44.64964886,146.81,146.8,1e-08]
[1751736026614,18.64964886,146.8,146.79,1e-08]
[1751736026838,23.73679532,146.8,146.79,1e-08]
[1751736027814,30.54878442,146.8,146.79,1e-08]
[1751736028318,44.64964886,146.78,146.77,1e-08]
[1751736028516,49.73679532,146.78,146.77,1e-08]
[1751736029741,56.54971261,146.78,146.77,1e-08]
[1751736032139,37.90006375,146.78,146.77,1e-08]
[1751736032536,32.81291729,146.78,146.77,1e-08]
[1751736034423,37.86738817,146.78,146.77,1e-08]
[1751736037545,32.81291729,146.78,146.77,1e-08]
[1751736037944,6.81291729,146.78,146.77,1e-08]
[1751736038130,23.84196185,146.8,146.77,1e-08]
[1751736039843,26.0,146.78,146.77,1e-08]
[1751736040050,31.048996,146.78,146.77,1e-08]
[1751736040832,37.86191329,146.78,146.77,1e-08]
[1751736041039,56.51156215,146.78,146.77,1e-08]
[1751736043152,37.86191329,146.78,146.77,1e-08]
[1751736043336,32.81291729,146.78,146.77,1e-08]
[1751736045244,56.51174411,146.78,146.77,1e-08]
[1751736050658,56.65390568,146.78,146.77,1e-08]
[1751736051947,56.68390568,146.78,146.77,1e-08]
[1751736055453,37.89209525,146.78,146.77,1e-08]
[1751736058474,11.89209525,146.78,146.77,1e-08]
[1751736058653,0.03,146.78,146.77,1e-08]
[1751736058855,0.03,146.78,146.77,8.60796821]
[1751736060352,0.03,146.78,146.77,1.52590001]
[1751736064277,5.10866877,146.78,146.77,1.52590001]
[1751736064460,11.92158606,146.78,146.77,1.52590001]
[1751736064967,6.84291729,146.78,146.77,1.52590001]
[1751736065292,5.10866877,146.78,146.77,1.52590001]
[1751736066171,5.10866877,146.78,146.77,8.60796821]
[1751736066473,0.03,146.78,146.77,1.52590001]
[1751736066667,0.03,146.78,146.77,8.60796821]
[1751736073886,6.34534542,146.85,146.77,21.84054969]
[1751736074066,5.09264815,146.84,146.81,7.0820682]
[1751736074270,5.09264815,146.83,146.81,7.0820682]
[1751736074480,6.80966973,146.85,146.8,7.0820682]
[1751736074704,5.09022796,146.84,146.8,7.0820682]
[1751736074867,5.09022796,146.83,146.8,7.0820682]
[1751736075074,6.80966973,146.85,146.8,7.0820682]
[1751736075273,5.09020547,146.84,146.8,7.0820682]
[1751736075576,5.09020547,146.83,146.8,7.0820682]
[1751736075774,5.09020547,146.82,146.8,7.0820682]
[1751736075991,5.09020547,146.83,146.8,7.0820682]
[1751736076187,6.81042944,146.84,146.8,7.0820682]
[1751736076483,5.08673434,146.83,146.8,7.0820682]
[1751736079667,6.81042944,146.84,146.8,7.0820682]
[1751736079873,11.89716378,146.84,146.8,7.0820682]
[1751736080185,6.81042944,146.84,146.8,7.0820682]
[1751736080490,6.81042944,146.84,146.79,6.81210672]
[1751736080694,11.89214528,146.84,146.8,7.0820682]
[1751736080873,23.83230934,146.86,146.8,7.0820682]
[1751736081192,5.0817371,146.85,146.8,7.0820682]
[1751736081490,5.0817371,146.84,146.8,7.0820682]
[1751736081691,5.0817371,146.85,146.8,7.0820682]
[1751736081895,5.0817371,146.84,146.8,7.0820682]
[1751736082096,6.81013347,146.84,146.8,7.0820682]
[1751736082290,11.89187057,146.84,146.8,7.0820682]
[1751736082481,6.81013347,146.84,146.8,7.0820682]
[1751736082889,11.89015722,146.84,146.81,7.0820682]
[1751736083080,23.83230934,146.86,146.81,7.0820682]
[1751736083277,5.08012121,146.85,146.81,7.0820682]
[1751736083475,5.08012121,146.84,146.81,7.0820682]
[1751736083775,5.08012121,146.85,146.81,7.0820682]
[1751736083969,5.08012121,146.84,146.81,7.0820682]
[1751736084171,6.81013347,146.84,146.81,7.0820682]
[1751736084372,11.89025468,146.84,146.81,7.0820682]
[1751736084571,6.81013347,146.84,146.78,6.81288602]
[1751736084781,6.81013347,146.84,146.8,7.0820682]
[1751736084972,11.88864135,146.84,146.8,7.0820682]
[1751736085192,6.81013347,146.84,146.79,7.0820682]
[1751736085387,23.83546716,146.84,146.77,15.04510001]
[1751736085593,5.07808365,146.83,146.77,15.04510001]
[1751736085788,5.07808365,146.82,146.77,15.04510001]
[1751736086093,6.81106116,146.82,146.77,22.12716821]
[1751736086394,11.88914481,146.82,146.77,22.12716821]
[1751736086585,6.81106116,146.82,146.77,22.12716821]
[1751736086784,6.81106116,146.82,146.78,7.0820682]
[1751736087095,11.89025552,146.82,146.77,22.12716821]
[1751736087287,6.81106116,146.82,146.77,22.12716821]
[1751736087681,11.89050699,146.82,146.77,22.12716821]
[1751736087885,5.0795486,146.81,146.77,22.12716821]
[1751736088377,6.81106116,146.82,146.77,22.12716821]
[1751736088578,11.89060976,146.82,146.77,22.12716821]
[1751736088780,11.89152932,146.81,146.77,22.12716821]
[1751736088990,6.81198072,146.81,146.77,22.12716821]
[1751736089723,11.89179335,146.81,146.77,22.12716821]
[1751736089896,6.81106116,146.82,146.77,22.12716821]
[1751736090394,5.08018318,146.81,146.77,8.62590001]
[1751736090595,5.08018318,146.8,146.77,8.62590001]
[1751736090799,5.08018318,146.81,146.77,8.62590001]
[1751736091002,5.08018318,146.8,146.77,8.62590001]
[1751736091297,5.08018318,146.81,146.77,8.62590001]
[1751736091480,5.08018318,146.8,146.77,8.62590001]
[1751736091681,5.08018318,146.81,146.77,8.62590001]
[1751736091902,6.81245316,146.79,146.77,8.62590001]
[1751736092577,5.08215756,146.78,146.77,1e-08]
[1751736092776,11.89461072,146.79,146.77,1e-08]
[1751736094999,5.08215756,146.79,146.77,7.08206821]
[1751736095199,6.8115251,146.81,146.77,7.08206821]
[1751736095506,5.08215756,146.8,146.77,7.08206821]
[1751736095803,5.08215756,146.79,146.77,1e-08]
[1751736096002,5.08215756,146.78,146.77,1e-08]
[1751736097079,11.89507485,146.78,146.77,1e-08]
[1751736099097,5.08215756,146.79,146.77,8.65766821]
[1751736099299,5.08215756,146.81,146.77,1.57560001]
[1751736099485,5.08215756,146.8,146.79,7.0820682]
[1751736101294,6.81158419,146.81,146.79,7.0820682]
[1751736102101,6.81059728,146.83,146.79,7.0820682]
[1751736102400,5.09311635,146.82,146.79,7.0820682]
[1751736102593,5.09311635,146.81,146.79,7.0820682]
[1751736102793,5.09311635,146.8,146.79,7.0820682]
[1751736104900,5.09311635,146.8,146.78,7.0820682]
[1751736105088,6.81059728,146.83,146.78,7.0820682]
[1751736105293,5.09484342,146.82,146.78,7.0820682]
[1751736105501,5.09484342,146.81,146.78,7.0820682]
[1751736105706,5.09484342,146.8,146.78,7.0820682]
[1751736105909,5.09484342,146.79,146.78,7.0820682]
[1751736106108,5.09484342,146.79,146.77,8.65766821]
[1751736106311,6.81106116,146.82,146.77,8.65766821]
[1751736106483,5.09551484,146.81,146.77,8.65766821]
[1751736106686,5.09551484,146.8,146.77,8.65766821]
[1751736106888,5.09551484,146.79,146.77,8.65766821]
[1751736107183,5.09602616,146.78,146.77,1e-08]
[1751736108211,11.90894345,146.78,146.77,1e-08]
[1751736108409,5.09602616,146.78,146.77,1e-08]
[1751736109895,11.90894345,146.78,146.77,1e-08]
[1751736117400,5.09602616,146.78,146.77,1e-08]
[1751736117809,11.90856292,146.79,146.77,1e-08]
[1751736118014,5.09602616,146.78,146.77,1e-08]
[1751736119924,5.09602616,146.79,146.77,1e-08]
[1751736120097,5.09602616,146.78,146.77,1e-08]
[1751736120303,5.09602616,146.79,146.77,1e-08]
[1751736120510,5.09602616,146.78,146.77,1e-08]
[1751736120709,5.09602616,146.79,146.77,1e-08]
[1751736121022,0.03,146.8,146.77,1e-08]
[1751736121023,5.09602616,146.78,146.77,1e-08]
[1751736121225,5.09602616,146.79,146.77,1e-08]
[1751736121419,5.09602616,146.78,146.77,1e-08]
[1751736121620,5.09602616,146.79,146.77,1e-08]
[1751736121803,5.09602616,146.78,146.77,1e-08]